[Event "Late-Titled-Tuesday-Blitz-May-07-2024"]
[Site "Chess.com"]
[Date "2024.05.07"]
[Round "4"]
[White "Adar_07"]
[Black "Durarbayli"]
[Result "0-1"]
[WhiteElo "2733"]
[BlackElo "2951"]
[TimeControl "180+1"]
[EndTime "14:42:25 PDT"]
[Termination "Durarbayli won by checkmate"]

1. Nf3 {[%clk 0:03:00.9]} 1... c5 {[%clk 0:02:58.4]} 2. e4 {[%clk 0:02:59.1]}
2... d6 {[%clk 0:02:58.1]} 3. Bb5+ {[%clk 0:02:58.2]} 3... Bd7 {[%clk
0:02:57.4]} 4. Bxd7+ {[%clk 0:02:57.9]} 4... Qxd7 {[%clk 0:02:58.3]} 5. c4
{[%clk 0:02:58.3]} 5... Nc6 {[%clk 0:02:56.7]} 6. Nc3 {[%clk 0:02:58.1]} 6... g6
{[%clk 0:02:57]} 7. d4 {[%clk 0:02:57.9]} 7... Bg7 {[%clk 0:02:57.5]} 8. dxc5
{[%clk 0:02:55.3]} 8... Bxc3+ {[%clk 0:02:56.6]} 9. bxc3 {[%clk 0:02:55.2]} 9...
dxc5 {[%clk 0:02:57.5]} 10. Qc2 {[%clk 0:02:46.8]} 10... O-O-O {[%clk
0:02:44.8]} 11. Be3 {[%clk 0:02:43]} 11... Qd3 {[%clk 0:02:38.2]} 12. Qxd3
{[%clk 0:02:09]} 12... Rxd3 {[%clk 0:02:39.1]} 13. Bxc5 {[%clk 0:02:09.2]} 13...
Nf6 {[%clk 0:02:20.9]} 14. e5 {[%clk 0:01:44.6]} 14... Ne4 {[%clk 0:02:20.8]}
15. Be3 {[%clk 0:01:32.3]} 15... Rxc3 {[%clk 0:02:15]} 16. O-O {[%clk
0:01:10.5]} 16... Rxc4 {[%clk 0:02:13.8]} 17. Rfc1 {[%clk 0:01:11.2]} 17...
Rxc1+ {[%clk 0:02:13.7]} 18. Rxc1 {[%clk 0:01:11.1]} 18... Rd8 {[%clk
0:02:02.7]} 19. h4 {[%clk 0:01:00.2]} 19... Rd5 {[%clk 0:01:44.7]} 20. Bxa7
{[%clk 0:00:52.8]} 20... Ra5 {[%clk 0:01:41.6]} 21. Be3 {[%clk 0:00:43.8]} 21...
Rxa2 {[%clk 0:01:41.4]} 22. Rc4 {[%clk 0:00:35]} 22... f5 {[%clk 0:01:41.1]} 23.
exf6 {[%clk 0:00:35.5]} 23... Nxf6 {[%clk 0:01:41.7]} 24. Ne5 {[%clk 0:00:33.5]}
24... Kc7 {[%clk 0:01:29.4]} 25. Bf4 {[%clk 0:00:33.7]} 25... Kb6 {[%clk
0:01:19.9]} 26. Be3+ {[%clk 0:00:33.8]} 26... Kc7 {[%clk 0:00:31]} 27. Bf4
{[%clk 0:00:33.5]} 27... Kd8 {[%clk 0:00:18.5]} 28. Nxc6+ {[%clk 0:00:33.6]}
28... bxc6 {[%clk 0:00:19.4]} 29. Rxc6 {[%clk 0:00:34.5]} 29... Kd7 {[%clk
0:00:18.9]} 30. Rc1 {[%clk 0:00:33.5]} 30... Ke6 {[%clk 0:00:18.3]} 31. f3
{[%clk 0:00:26.1]} 31... Ra4 {[%clk 0:00:18.7]} 32. Bg3 {[%clk 0:00:24.8]} 32...
Nd5 {[%clk 0:00:19.3]} 33. Kh2 {[%clk 0:00:21.4]} 33... Ra2 {[%clk 0:00:19.4]}
34. Re1+ {[%clk 0:00:19.2]} 34... Kf7 {[%clk 0:00:19.8]} 35. Kh3 {[%clk
0:00:18.7]} 35... h5 {[%clk 0:00:19.4]} 36. Re5 {[%clk 0:00:18.1]} 36... e6
{[%clk 0:00:19.5]} 37. Re4 {[%clk 0:00:15.6]} 37... Ra1 {[%clk 0:00:19.5]} 38.
Be5 {[%clk 0:00:15.1]} 38... Rh1+ {[%clk 0:00:15.5]} 39. Kg3 {[%clk 0:00:15.5]}
39... Ne7 {[%clk 0:00:16.3]} 40. Kf2 {[%clk 0:00:11.1]} 40... Nf5 {[%clk
0:00:16.9]} 41. g3 {[%clk 0:00:09]} 41... Rh2+ {[%clk 0:00:17.3]} 42. Kg1 {[%clk
0:00:09]} 42... Ra2 {[%clk 0:00:17.5]} 43. Rc4 {[%clk 0:00:07.6]} 43... Ke8
{[%clk 0:00:17.3]} 44. Rc8+ {[%clk 0:00:06.6]} 44... Kd7 {[%clk 0:00:17.9]} 45.
Rc7+ {[%clk 0:00:06.8]} 45... Kd8 {[%clk 0:00:17.4]} 46. Rf7 {[%clk 0:00:07.3]}
46... Re2 {[%clk 0:00:17.5]} 47. Bf4 {[%clk 0:00:06.7]} 47... Ke8 {[%clk
0:00:12.6]} 48. Rf6 {[%clk 0:00:06.2]} 48... Ne7 {[%clk 0:00:12.5]} 49. Bg5
{[%clk 0:00:04.4]} 49... Re5 {[%clk 0:00:09.4]} 50. Rf4 {[%clk 0:00:03.2]} 50...
Nd5 {[%clk 0:00:08.8]} 51. Rd4 {[%clk 0:00:02.9]} 51... Re2 {[%clk 0:00:09.3]}
52. Rd2 {[%clk 0:00:02.5]} 52... Re1+ {[%clk 0:00:09.1]} 53. Kf2 {[%clk
0:00:03]} 53... Rb1 {[%clk 0:00:10]} 54. Re2 {[%clk 0:00:03.4]} 54... Kd7 {[%clk
0:00:10.6]} 55. Rc2 {[%clk 0:00:03.1]} 55... Rb3 {[%clk 0:00:11.2]} 56. Ra2
{[%clk 0:00:03.6]} 56... Nb4 {[%clk 0:00:11.3]} 57. Ra7+ {[%clk 0:00:03.7]}
57... Kd6 {[%clk 0:00:11.6]} 58. Be7+ {[%clk 0:00:03.6]} 58... Ke5 {[%clk
0:00:11.5]} 59. Bg5 {[%clk 0:00:02.2]} 59... Nd3+ {[%clk 0:00:11.3]} 60. Ke2
{[%clk 0:00:02.2]} 60... Nc5 {[%clk 0:00:11.1]} 61. Bf4+ {[%clk 0:00:02.1]}
61... Kd5 {[%clk 0:00:11.1]} 62. Rc7 {[%clk 0:00:01.9]} 62... Rb2+ {[%clk
0:00:10.9]} 63. Ke3 {[%clk 0:00:02.6]} 63... Rb3+ {[%clk 0:00:11.4]} 64. Ke2
{[%clk 0:00:02.8]} 64... Rb5 {[%clk 0:00:11.6]} 65. Rg7 {[%clk 0:00:02.4]} 65...
e5 {[%clk 0:00:12.1]} 66. Bg5 {[%clk 0:00:01.9]} 66... Rb2+ {[%clk 0:00:12.4]}
67. Kf1 {[%clk 0:00:02]} 67... Nd3 {[%clk 0:00:12]} 68. Rd7+ {[%clk 0:00:02.1]}
68... Kc4 {[%clk 0:00:12.3]} 69. Rc7+ {[%clk 0:00:02.7]} 69... Kd4 {[%clk
0:00:12.7]} 70. Rd7+ {[%clk 0:00:02.9]} 70... Kc4 {[%clk 0:00:13.2]} 71. Rc7+
{[%clk 0:00:03.3]} 71... Kb5 {[%clk 0:00:11.1]} 72. Rb7+ {[%clk 0:00:03.2]}
72... Kc6 {[%clk 0:00:11.8]} 73. Rxb2 {[%clk 0:00:03.8]} 73... Nxb2 {[%clk
0:00:12.7]} 74. Ke2 {[%clk 0:00:04.4]} 74... Nc4 {[%clk 0:00:13.6]} 75. Kd3
{[%clk 0:00:04.6]} 75... Kd5 {[%clk 0:00:14.5]} 76. Ke2 {[%clk 0:00:04.6]} 76...
Nd6 {[%clk 0:00:14.9]} 77. g4 {[%clk 0:00:04.3]} 77... Nc4 {[%clk 0:00:15.1]}
78. gxh5 {[%clk 0:00:03.9]} 78... gxh5 {[%clk 0:00:16]} 79. Kd3 {[%clk
0:00:04.3]} 79... Nd6 {[%clk 0:00:16.6]} 80. Ke3 {[%clk 0:00:04.1]} 80... Nf5+
{[%clk 0:00:17.5]} 81. Kd3 {[%clk 0:00:03.9]} 81... Nd4 {[%clk 0:00:16.9]} 82.
Ke3 {[%clk 0:00:04.1]} 82... Ne6 {[%clk 0:00:17.8]} 83. Bf6 {[%clk 0:00:03.9]}
83... Nf4 {[%clk 0:00:17.8]} 84. Bg5 {[%clk 0:00:04.3]} 84... Ng6 {[%clk
0:00:18.4]} 85. Kd3 {[%clk 0:00:04.1]} 85... Nf8 {[%clk 0:00:17.7]} 86. Ke3
{[%clk 0:00:03.7]} 86... Nd7 {[%clk 0:00:18.6]} 87. Kd3 {[%clk 0:00:01.8]} 87...
Ke6 {[%clk 0:00:18.9]} 88. Ke4 {[%clk 0:00:02]} 88... Nc5+ {[%clk 0:00:18.8]}
89. Ke3 {[%clk 0:00:02.7]} 89... Kf5 {[%clk 0:00:19.2]} 90. Be7 {[%clk
0:00:02.9]} 90... Ne6 {[%clk 0:00:19.6]} 91. Bd6 {[%clk 0:00:01.7]} 91... Nd8
{[%clk 0:00:18.7]} 92. Be7 {[%clk 0:00:01.9]} 92... Nf7 {[%clk 0:00:18.7]} 93.
Bf8 {[%clk 0:00:02.1]} 93... Nh8 {[%clk 0:00:18]} 94. Be7 {[%clk 0:00:02.2]}
94... Ng6 {[%clk 0:00:18.9]} 95. Bg5 {[%clk 0:00:02.8]} 95... Nf8 {[%clk
0:00:18.4]} 96. Be7 {[%clk 0:00:03]} 96... Nd7 {[%clk 0:00:19]} 97. Bd8 {[%clk
0:00:03.1]} 97... Nb8 {[%clk 0:00:19.1]} 98. Be7 {[%clk 0:00:03.3]} 98... Nc6
{[%clk 0:00:20]} 99. Bg5 {[%clk 0:00:04]} 99... Nb4 {[%clk 0:00:20.3]} 100. Kf2
{[%clk 0:00:01.9]} 100... Nd5 {[%clk 0:00:20.9]} 101. Kg3 {[%clk 0:00:02]}
101... Nb4 {[%clk 0:00:20.6]} 102. Kf2 {[%clk 0:00:02.2]} 102... Nd3+ {[%clk
0:00:20.9]} 103. Kg3 {[%clk 0:00:02.8]} 103... Ke6 {[%clk 0:00:20.6]} 104. Kg2
{[%clk 0:00:02]} 104... Kd5 {[%clk 0:00:21.1]} 105. Kf1 {[%clk 0:00:02.5]}
105... Kd4 {[%clk 0:00:20.9]} 106. Ke2 {[%clk 0:00:03.1]} 106... Nf4+ {[%clk
0:00:21]} 107. Kd2 {[%clk 0:00:02.4]} 107... Ne6 {[%clk 0:00:19.3]} 108. Bf6
{[%clk 0:00:02]} 108... Nc5 {[%clk 0:00:17.5]} 109. Ke2 {[%clk 0:00:02.3]}
109... Nd7 {[%clk 0:00:16.7]} 110. Bg7 {[%clk 0:00:02.2]} 110... Kd5 {[%clk
0:00:16.8]} 111. Ke3 {[%clk 0:00:02.4]} 111... Ke6 {[%clk 0:00:16.9]} 112. Bh6
{[%clk 0:00:02.6]} 112... Kf5 {[%clk 0:00:12.1]} 113. Bg5 {[%clk 0:00:02.9]}
113... Nb6 {[%clk 0:00:12.4]} 114. Bd8 {[%clk 0:00:02.7]} 114... Nc4+ {[%clk
0:00:12.6]} 115. Kd3 {[%clk 0:00:02.2]} 115... Nb2+ {[%clk 0:00:12.5]} 116. Ke3
{[%clk 0:00:02.4]} 116... Nc4+ {[%clk 0:00:12.4]} 117. Kf2 {[%clk 0:00:02.3]}
117... Nd6 {[%clk 0:00:08.7]} 118. Be7 {[%clk 0:00:01.6]} 118... Nf7 {[%clk
0:00:08.4]} 119. Ke3 {[%clk 0:00:01.4]} 119... Ke6 {[%clk 0:00:09.3]} 120. Bg5
{[%clk 0:00:01.6]} 120... Nxg5 {[%clk 0:00:09.2]} 121. hxg5 {[%clk 0:00:02.5]}
121... Kf5 {[%clk 0:00:10.1]} 122. Kd3 {[%clk 0:00:02.4]} 122... Kxg5 {[%clk
0:00:10.4]} 123. Ke4 {[%clk 0:00:03.3]} 123... h4 {[%clk 0:00:10.7]} 124. Kxe5
{[%clk 0:00:04.2]} 124... h3 {[%clk 0:00:11.3]} 125. f4+ {[%clk 0:00:05.1]}
125... Kh6 {[%clk 0:00:11.4]} 126. f5 {[%clk 0:00:06]} 126... h2 {[%clk
0:00:11.9]} 127. Ke6 {[%clk 0:00:06.4]} 127... h1=Q {[%clk 0:00:12.4]} 128. Kf7
{[%clk 0:00:07.3]} 128... Qe4 {[%clk 0:00:12.6]} 129. f6 {[%clk 0:00:07.4]}
129... Kh7 {[%clk 0:00:12.7]} 130. Kf8 {[%clk 0:00:07.7]} 130... Kg6 {[%clk
0:00:13]} 131. f7 {[%clk 0:00:08]} 131... Qe6 {[%clk 0:00:13.6]} 132. Kg8 {[%clk
0:00:08.3]} 132... Qxf7+ {[%clk 0:00:14.5]} 133. Kh8 {[%clk 0:00:08.7]} 133...
Qh7# {[%clk 0:00:15.4]} 0-1

[Event "Late-Titled-Tuesday-Blitz-May-07-2024"]
[Site "Chess.com"]
[Date "2024.05.07"]
[Round "5"]
[White "Magicmaster17"]
[Black "GWR2024"]
[Result "1-0"]
[WhiteElo "2881"]
[BlackElo "2170"]
[TimeControl "180+1"]
[EndTime "14:51:07 PDT"]
[Termination "Magicmaster17 won by resignation"]

1. Nf3 {[%clk 0:03:00.9]} 1... f5 {[%clk 0:02:57.6]} 2. d3 {[%clk 0:03:00.1]}
2... d5 {[%clk 0:02:55.8]} 3. c4 {[%clk 0:02:54.3]} 3... Nf6 {[%clk 0:02:53.7]}
4. cxd5 {[%clk 0:02:53.8]} 4... c6 {[%clk 0:02:52.3]} 5. dxc6 {[%clk 0:02:52.6]}
5... Nxc6 {[%clk 0:02:52.4]} 6. g3 {[%clk 0:02:52.4]} 6... e5 {[%clk 0:02:52.2]}
7. Bg2 {[%clk 0:02:52.3]} 7... Bd6 {[%clk 0:02:48.4]} 8. O-O {[%clk 0:02:42.6]}
8... O-O {[%clk 0:02:47.3]} 9. Nc3 {[%clk 0:02:41.9]} 9... Bd7 {[%clk
0:02:44.2]} 10. Bg5 {[%clk 0:02:40]} 10... h6 {[%clk 0:02:41]} 11. Bxf6 {[%clk
0:02:40.1]} 11... Qxf6 {[%clk 0:02:40]} 12. Qb3+ {[%clk 0:02:36.6]} 12... Kh8
{[%clk 0:02:37.1]} 13. Qxb7 {[%clk 0:02:36.2]} 13... Rad8 {[%clk 0:02:23.4]} 14.
Rac1 {[%clk 0:02:25.2]} 14... f4 {[%clk 0:02:15.5]} 15. Ne4 {[%clk 0:02:24.2]}
15... Qe7 {[%clk 0:02:14.6]} 16. Rxc6 {[%clk 0:02:22.3]} 16... Bxc6 {[%clk
0:02:11.5]} 17. Qxc6 {[%clk 0:02:23.2]} 17... Bb8 {[%clk 0:01:59.2]} 18. Nh4
{[%clk 0:02:22.5]} 18... a6 {[%clk 0:01:53.6]} 1-0

[Event "Late-Titled-Tuesday-Blitz-May-07-2024"]
[Site "Chess.com"]
[Date "2024.05.07"]
[Round "5"]
[White "MarkusRagger"]
[Black "sudtirolese06"]
[Result "1-0"]
[WhiteElo "2797"]
[BlackElo "2459"]
[TimeControl "180+1"]
[EndTime "14:51:15 PDT"]
[Termination "MarkusRagger won by checkmate"]

1. d4 {[%clk 0:03:00.9]} 1... g6 {[%clk 0:02:50.9]} 2. e4 {[%clk 0:03:00.2]}
2... Bg7 {[%clk 0:02:51]} 3. Nf3 {[%clk 0:03:00]} 3... d6 {[%clk 0:02:51.3]} 4.
Be3 {[%clk 0:02:59.3]} 4... Nf6 {[%clk 0:02:51.2]} 5. Nc3 {[%clk 0:02:58.9]}
5... O-O {[%clk 0:02:51.6]} 6. Qd2 {[%clk 0:02:58.6]} 6... c6 {[%clk 0:02:49.7]}
7. Bh6 {[%clk 0:02:56.5]} 7... b5 {[%clk 0:02:49.3]} 8. Bd3 {[%clk 0:02:53.2]}
8... Nbd7 {[%clk 0:02:43.8]} 9. h4 {[%clk 0:02:50.8]} 9... b4 {[%clk 0:02:42.8]}
10. Ne2 {[%clk 0:02:47.6]} 10... a5 {[%clk 0:02:42.9]} 11. h5 {[%clk 0:02:46.2]}
11... Ba6 {[%clk 0:02:42.7]} 12. hxg6 {[%clk 0:02:39.2]} 12... fxg6 {[%clk
0:02:27.9]} 13. Bxg7 {[%clk 0:02:32.7]} 13... Kxg7 {[%clk 0:02:26.2]} 14. Nf4
{[%clk 0:02:17.4]} 14... Kg8 {[%clk 0:02:08.2]} 15. Ne6 {[%clk 0:02:16.8]} 15...
Qb6 {[%clk 0:02:05.6]} 16. Qh6 {[%clk 0:02:08.3]} 16... Bxd3 {[%clk 0:01:55.8]}
17. Qg7# {[%clk 0:02:05.7]} 1-0

[Event "Late-Titled-Tuesday-Blitz-May-07-2024"]
[Site "Chess.com"]
[Date "2024.05.07"]
[Round "5"]
[White "Iball95"]
[Black "Karacsonyi_Gellert"]
[Result "1-0"]
[WhiteElo "2896"]
[BlackElo "2705"]
[TimeControl "180+1"]
[EndTime "14:51:51 PDT"]
[Termination "Iball95 won by resignation"]

1. e4 {[%clk 0:02:59.4]} 1... c5 {[%clk 0:02:59.9]} 2. Nf3 {[%clk 0:03:00.1]}
2... Nc6 {[%clk 0:02:58.7]} 3. Nc3 {[%clk 0:03:00.6]} 3... g6 {[%clk 0:02:58.3]}
4. d4 {[%clk 0:03:00.6]} 4... cxd4 {[%clk 0:02:59.2]} 5. Nxd4 {[%clk 0:03:01.4]}
5... Bg7 {[%clk 0:02:59.8]} 6. Nxc6 {[%clk 0:03:01.9]} 6... bxc6 {[%clk
0:02:59.7]} 7. Bc4 {[%clk 0:03:02.5]} 7... d6 {[%clk 0:02:59.8]} 8. O-O {[%clk
0:03:02.4]} 8... Nf6 {[%clk 0:03:00.3]} 9. e5 {[%clk 0:03:03]} 9... dxe5 {[%clk
0:03:00.7]} 10. Qxd8+ {[%clk 0:03:03.9]} 10... Kxd8 {[%clk 0:03:01.6]} 11. Re1
{[%clk 0:03:04.1]} 11... e6 {[%clk 0:02:59.5]} 12. Rxe5 {[%clk 0:03:04]} 12...
Nd5 {[%clk 0:02:58.6]} 13. Re2 {[%clk 0:03:04.3]} 13... Nxc3 {[%clk 0:02:55.3]}
14. bxc3 {[%clk 0:03:05.2]} 14... Bxc3 {[%clk 0:02:40.7]} 15. Rb1 {[%clk
0:03:05.1]} 15... Kc7 {[%clk 0:02:38.9]} 16. Bf4+ {[%clk 0:03:00.3]} 16... e5
{[%clk 0:02:39.1]} 17. Rxe5 {[%clk 0:02:59.3]} 17... Kd8 {[%clk 0:02:06.2]} 18.
Re3 {[%clk 0:02:22.9]} 18... Bd4 {[%clk 0:01:26.3]} 19. Rd1 {[%clk 0:02:18.3]}
19... c5 {[%clk 0:01:19.2]} 20. c3 {[%clk 0:02:18.3]} 1-0

[Event "Late-Titled-Tuesday-Blitz-May-07-2024"]
[Site "Chess.com"]
[Date "2024.05.07"]
[Round "5"]
[White "eljanov"]
[Black "Bryanl106"]
[Result "0-1"]
[WhiteElo "2858"]
[BlackElo "2708"]
[TimeControl "180+1"]
[EndTime "14:51:54 PDT"]
[Termination "Bryanl106 won by resignation"]

1. d4 {[%clk 0:03:00.9]} 1... Nf6 {[%clk 0:02:59.1]} 2. c4 {[%clk 0:03:00.8]}
2... c5 {[%clk 0:02:58.8]} 3. d5 {[%clk 0:03:00.5]} 3... g6 {[%clk 0:02:59.4]}
4. Nc3 {[%clk 0:03:00.3]} 4... Bg7 {[%clk 0:03:00.2]} 5. e4 {[%clk 0:03:00.9]}
5... d6 {[%clk 0:03:00.9]} 6. h3 {[%clk 0:03:00.5]} 6... O-O {[%clk 0:03:01.8]}
7. Nf3 {[%clk 0:03:00.9]} 7... e6 {[%clk 0:03:02.6]} 8. Bd3 {[%clk 0:02:56.5]}
8... Na6 {[%clk 0:03:02.6]} 9. O-O {[%clk 0:02:56.3]} 9... Nc7 {[%clk
0:03:02.8]} 10. Bg5 {[%clk 0:02:47.2]} 10... h6 {[%clk 0:03:00.9]} 11. Bd2
{[%clk 0:02:47.8]} 11... e5 {[%clk 0:02:57.6]} 12. Rb1 {[%clk 0:02:38.2]} 12...
b6 {[%clk 0:02:49.9]} 13. a3 {[%clk 0:02:34.7]} 13... Nh5 {[%clk 0:02:49.7]} 14.
Qc1 {[%clk 0:02:34.6]} 14... Kh7 {[%clk 0:02:48.8]} 15. Ne2 {[%clk 0:02:31.6]}
15... Qf6 {[%clk 0:02:48.4]} 16. Ng5+ {[%clk 0:01:51.9]} 16... Kg8 {[%clk
0:02:47.8]} 17. g4 {[%clk 0:01:47.5]} 17... hxg5 {[%clk 0:02:43.4]} 18. gxh5
{[%clk 0:01:31.6]} 18... Qf3 {[%clk 0:02:30.2]} 0-1

[Event "Late-Titled-Tuesday-Blitz-May-07-2024"]
[Site "Chess.com"]
[Date "2024.05.07"]
[Round "5"]
[White "mfschulz"]
[Black "ubdip"]
[Result "1-0"]
[WhiteElo "2339"]
[BlackElo "2496"]
[TimeControl "180+1"]
[EndTime "14:52:11 PDT"]
[Termination "mfschulz won by resignation"]

1. d4 {[%clk 0:02:59.1]} 1... Nf6 {[%clk 0:02:59.3]} 2. Bg5 {[%clk 0:02:58.9]}
2... b6 {[%clk 0:02:53.8]} 3. Bxf6 {[%clk 0:02:55.5]} 3... exf6 {[%clk
0:02:52.8]} 4. e3 {[%clk 0:02:55.5]} 4... Bb7 {[%clk 0:02:52.4]} 5. Nf3 {[%clk
0:02:55.7]} 5... d5 {[%clk 0:02:50.6]} 6. c4 {[%clk 0:02:53.8]} 6... dxc4 {[%clk
0:02:45.7]} 7. Bxc4 {[%clk 0:02:52.9]} 7... Bd6 {[%clk 0:02:45.6]} 8. Nc3 {[%clk
0:02:51.7]} 8... Nd7 {[%clk 0:02:41.2]} 9. O-O {[%clk 0:02:50.4]} 9... f5 {[%clk
0:02:35.5]} 10. Nb5 {[%clk 0:02:49.4]} 10... Be7 {[%clk 0:02:33.5]} 11. Rc1
{[%clk 0:02:48.2]} 11... c6 {[%clk 0:02:22]} 12. Nc3 {[%clk 0:02:46.8]} 12...
O-O {[%clk 0:02:20.5]} 13. Qc2 {[%clk 0:02:44.8]} 13... g6 {[%clk 0:02:18.5]}
14. Ne5 {[%clk 0:02:41.7]} 14... Nxe5 {[%clk 0:02:15.4]} 15. dxe5 {[%clk
0:02:41.5]} 15... Rc8 {[%clk 0:01:47.5]} 16. Rfd1 {[%clk 0:02:41]} 16... Qc7
{[%clk 0:01:47]} 17. e6 {[%clk 0:02:40.6]} 17... f6 {[%clk 0:01:36.6]} 18. Rd7
{[%clk 0:02:40.2]} 18... Qb8 {[%clk 0:00:50]} 19. Rxe7 {[%clk 0:02:39.9]} 19...
b5 {[%clk 0:00:50.9]} 20. Rxb7 {[%clk 0:02:38.4]} 20... b4 {[%clk 0:00:51.8]}
21. Rxb8 {[%clk 0:02:37.2]} 1-0

[Event "Late-Titled-Tuesday-Blitz-May-07-2024"]
[Site "Chess.com"]
[Date "2024.05.07"]
[Round "5"]
[White "LeninGuerra"]
[Black "DonMicheleCorleone"]
[Result "1-0"]
[WhiteElo "2665"]
[BlackElo "2502"]
[TimeControl "180+1"]
[EndTime "14:52:22 PDT"]
[Termination "LeninGuerra won by checkmate"]

1. e4 {[%clk 0:03:00.9]} 1... d5 {[%clk 0:02:35]} 2. exd5 {[%clk 0:02:59.2]}
2... Qxd5 {[%clk 0:02:34.1]} 3. d4 {[%clk 0:02:59.7]} 3... Nf6 {[%clk
0:02:33.2]} 4. Nf3 {[%clk 0:02:59.9]} 4... Bg4 {[%clk 0:02:27.7]} 5. Be2 {[%clk
0:03:00.2]} 5... Nc6 {[%clk 0:02:26.1]} 6. Be3 {[%clk 0:03:00.8]} 6... O-O-O
{[%clk 0:02:25.3]} 7. Nbd2 {[%clk 0:03:01.1]} 7... e5 {[%clk 0:02:21.7]} 8. c4
{[%clk 0:03:01.1]} 8... Qa5 {[%clk 0:02:21.4]} 9. d5 {[%clk 0:03:01.4]} 9... Nd4
{[%clk 0:02:02.9]} 10. Nxd4 {[%clk 0:02:58.6]} 10... exd4 {[%clk 0:02:01.5]} 11.
Bxg4+ {[%clk 0:02:58.4]} 11... Kb8 {[%clk 0:01:59.4]} 12. Bxd4 {[%clk
0:02:55.8]} 12... Bb4 {[%clk 0:01:56]} 13. Be2 {[%clk 0:02:18]} 13... Rhe8
{[%clk 0:01:49.9]} 14. Bc3 {[%clk 0:02:11.4]} 14... Ne4 {[%clk 0:01:36.8]} 15.
Nxe4 {[%clk 0:02:08]} 15... Rxe4 {[%clk 0:01:35.4]} 16. O-O {[%clk 0:02:06.6]}
16... Bxc3 {[%clk 0:01:35.3]} 17. bxc3 {[%clk 0:02:07.5]} 17... Qxc3 {[%clk
0:01:35.6]} 18. Rc1 {[%clk 0:01:59.1]} 18... Qe5 {[%clk 0:01:33.4]} 19. Bf3
{[%clk 0:01:57.7]} 19... Rd4 {[%clk 0:01:33.9]} 20. Qb3 {[%clk 0:01:54]} 20...
Re8 {[%clk 0:01:33.8]} 21. d6 {[%clk 0:01:50.3]} 21... b6 {[%clk 0:01:34.4]} 22.
dxc7+ {[%clk 0:01:49.7]} 22... Qxc7 {[%clk 0:01:34.5]} 23. c5 {[%clk 0:01:48.5]}
23... Rc8 {[%clk 0:01:31.8]} 24. cxb6 {[%clk 0:01:45.6]} 24... Qxc1 {[%clk
0:01:31.8]} 25. bxa7+ {[%clk 0:01:45.6]} 25... Kxa7 {[%clk 0:01:32.3]} 26. Qb7#
{[%clk 0:01:44.6]} 1-0

[Event "Late-Titled-Tuesday-Blitz-May-07-2024"]
[Site "Chess.com"]
[Date "2024.05.07"]
[Round "5"]
[White "OparinGrigoriy"]
[Black "cristianserban1"]
[Result "1-0"]
[WhiteElo "2985"]
[BlackElo "2632"]
[TimeControl "180+1"]
[EndTime "14:52:35 PDT"]
[Termination "OparinGrigoriy won by resignation"]

1. Nc3 {[%clk 0:03:00.9]} 1... d5 {[%clk 0:02:55.8]} 2. d4 {[%clk 0:02:59.9]}
2... Nf6 {[%clk 0:02:55.8]} 3. Bf4 {[%clk 0:03:00.3]} 3... c5 {[%clk 0:02:55.4]}
4. e3 {[%clk 0:03:00.9]} 4... cxd4 {[%clk 0:02:54.9]} 5. exd4 {[%clk 0:03:01.8]}
5... a6 {[%clk 0:02:54.7]} 6. Nf3 {[%clk 0:03:01.4]} 6... Nc6 {[%clk 0:02:55.2]}
7. Ne5 {[%clk 0:03:01.2]} 7... Bd7 {[%clk 0:02:55.5]} 8. Ne2 {[%clk 0:02:58.6]}
8... e6 {[%clk 0:02:51.2]} 9. c3 {[%clk 0:02:58.7]} 9... Nxe5 {[%clk 0:02:46.4]}
10. Bxe5 {[%clk 0:02:58.4]} 10... Qb6 {[%clk 0:02:28.9]} 11. Qb3 {[%clk
0:02:57.7]} 11... Qxb3 {[%clk 0:02:10]} 12. axb3 {[%clk 0:02:57.5]} 12... Bb5
{[%clk 0:02:10.3]} 13. Nc1 {[%clk 0:02:55.9]} 13... Bxf1 {[%clk 0:02:10.1]} 14.
Kxf1 {[%clk 0:02:56.8]} 14... Ne4 {[%clk 0:02:08.7]} 15. Ke2 {[%clk 0:02:56.9]}
15... f6 {[%clk 0:02:07.6]} 16. Bg3 {[%clk 0:02:56.7]} 16... Bd6 {[%clk
0:02:03.7]} 17. Nd3 {[%clk 0:02:55.3]} 17... Kf7 {[%clk 0:01:52.3]} 18. Bxd6
{[%clk 0:02:54.6]} 18... Nxd6 {[%clk 0:01:53.2]} 19. f3 {[%clk 0:02:55.4]} 19...
h5 {[%clk 0:01:43.5]} 20. Kf2 {[%clk 0:02:55]} 20... h4 {[%clk 0:01:41.4]} 21.
Rhe1 {[%clk 0:02:54.2]} 21... g5 {[%clk 0:01:37.5]} 22. Nc5 {[%clk 0:02:51.5]}
22... Rhe8 {[%clk 0:01:37.6]} 23. Rad1 {[%clk 0:02:50.8]} 23... b6 {[%clk
0:01:17.8]} 24. Nd3 {[%clk 0:02:50.9]} 24... a5 {[%clk 0:01:17.3]} 25. Ra1
{[%clk 0:02:50.9]} 25... Rac8 {[%clk 0:01:06]} 26. Re2 {[%clk 0:02:51]} 26...
Re7 {[%clk 0:00:58.1]} 27. Rae1 {[%clk 0:02:50.3]} 27... Rc6 {[%clk 0:00:41.1]}
28. b4 {[%clk 0:02:50.2]} 28... Nc4 {[%clk 0:00:38.7]} 29. bxa5 {[%clk
0:02:48.8]} 29... Nxa5 {[%clk 0:00:36.5]} 30. Nb4 {[%clk 0:02:48.9]} 30... Rc8
{[%clk 0:00:32.8]} 31. Nxd5 {[%clk 0:02:48.9]} 1-0

[Event "Late-Titled-Tuesday-Blitz-May-07-2024"]
[Site "Chess.com"]
[Date "2024.05.07"]
[Round "5"]
[White "Gareth-Bale11"]
[Black "aa175"]
[Result "1-0"]
[WhiteElo "2900"]
[BlackElo "2740"]
[TimeControl "180+1"]
[EndTime "14:52:38 PDT"]
[Termination "Gareth-Bale11 won by resignation"]

1. d4 {[%clk 0:03:00.9]} 1... Nf6 {[%clk 0:02:55.6]} 2. c4 {[%clk 0:02:59.7]}
2... g6 {[%clk 0:02:56.2]} 3. Nc3 {[%clk 0:02:59.1]} 3... d5 {[%clk 0:02:55.3]}
4. cxd5 {[%clk 0:02:56.3]} 4... Nxd5 {[%clk 0:02:56.2]} 5. e4 {[%clk 0:02:56.1]}
5... Nxc3 {[%clk 0:02:56]} 6. bxc3 {[%clk 0:02:56.8]} 6... Bg7 {[%clk
0:02:56.9]} 7. Qa4+ {[%clk 0:02:56.8]} 7... Nd7 {[%clk 0:02:55.1]} 8. Nf3 {[%clk
0:02:56.4]} 8... O-O {[%clk 0:02:55.8]} 9. Qa3 {[%clk 0:02:56.6]} 9... c5 {[%clk
0:02:55.1]} 10. Be2 {[%clk 0:02:53.1]} 10... b6 {[%clk 0:02:51]} 11. O-O {[%clk
0:02:50.4]} 11... Bb7 {[%clk 0:02:51.5]} 12. e5 {[%clk 0:02:50]} 12... e6 {[%clk
0:02:49.1]} 13. Bg5 {[%clk 0:02:44.1]} 13... Qc7 {[%clk 0:02:49.6]} 14. Rac1
{[%clk 0:02:37.2]} 14... Qc6 {[%clk 0:02:49.8]} 15. Qb2 {[%clk 0:02:33.9]} 15...
Qd5 {[%clk 0:02:33.1]} 16. Rfd1 {[%clk 0:02:32]} 16... Qe4 {[%clk 0:01:57]} 17.
h3 {[%clk 0:02:24.2]} 17... Rfc8 {[%clk 0:01:46.8]} 18. Nh4 {[%clk 0:02:17.1]}
18... Qc6 {[%clk 0:00:56.2]} 19. Nf3 {[%clk 0:02:01]} 19... c4 {[%clk 0:00:55]}
20. Ne1 {[%clk 0:01:58]} 20... Qxg2+ {[%clk 0:00:55.8]} 21. Nxg2 {[%clk
0:01:56.9]} 1-0